bitfinex/quotes_BTCUSD_20251231
["timestamp","ask_amount","ask_price","bid_price","bid_amount"]
[1767193264425,0.0001883,88540.0,88530.0,0.06777363]
[1767193264666,0.0001883,88540.0,88532.0,0.06777204]
[1767193264866,0.05698106,88553.0,88534.0,0.01129509]
[1767193264867,0.04558106,88553.0,88534.0,0.01129509]
[1767193265043,0.04558106,88553.0,88533.0,0.0791708]
[1767193265244,0.04578106,88550.0,88533.0,0.0114]
[1767193265643,0.04578106,88550.0,88533.0,0.02269522]
[1767193265845,0.04578106,88550.0,88533.0,0.0114]
[1767193266083,0.04578106,88550.0,88533.0,0.02269522]
[1767193266309,0.04578106,88550.0,88533.0,0.0114]
[1767193266451,0.04578106,88550.0,88534.0,0.03276812]
[1767193266651,0.04578106,88550.0,88535.0,0.0114]
[1767193267240,0.04578106,88550.0,88522.0,0.04524]
[1767193267241,0.001099,88535.0,88522.0,0.04524]
[1767193267444,0.04558106,88539.0,88523.0,0.0114]
[1767193268077,0.04558106,88539.0,88523.0,0.02269649]
[1767193268278,0.04558106,88539.0,88523.0,0.0114]
[1767193268480,0.04558106,88549.0,88524.0,0.04294378]
[1767193269072,0.04558106,88549.0,88523.0,0.0114]
[1767193270073,0.04558106,88549.0,88512.0,0.0112979]
[1767193270074,0.000549,88523.0,88507.0,0.01129854]
[1767193270316,0.04558106,88522.0,88514.0,0.0114]
[1767193270898,0.04558106,88522.0,88504.0,0.06779296]
[1767193271104,0.04558106,88522.0,88514.0,0.0114]
[1767193271730,0.04558106,88522.0,88501.0,0.06779574]
[1767193271731,0.04668006,88514.0,88499.0,0.01129956]
[1767193271886,0.04668006,88514.0,88513.0,0.01150619]
[1767193272220,0.04558106,88514.0,88513.0,0.01150619]
[1767193272441,0.04558106,88539.0,88513.0,0.01150619]
[1767193272860,0.04558106,88539.0,88514.0,0.0114]
[1767193273190,0.04558106,88539.0,88513.0,0.00010619]
[1767193273392,0.04558106,88539.0,88513.0,0.01150619]
[1767193274668,0.04520835,88539.0,88513.0,0.00010619]
[1767193274820,0.04558106,88537.0,88498.0,0.1492]
[1767193275000,0.04558106,88535.0,88503.0,0.0114]
[1767193276014,0.04558106,88535.0,88497.0,0.0002722]
[1767193276216,0.04558106,88533.0,88498.0,0.0114]
[1767193276421,0.04558106,88531.0,88498.0,0.0114]
[1767193276625,0.02397193,88530.0,88498.0,0.0114]
[1767193276844,0.04558106,88529.0,88498.0,0.0114]
[1767193279182,0.04558106,88529.0,88498.0,0.0214]
[1767193280926,0.04558106,88529.0,88498.0,0.01]
[1767193280927,0.05127917,88529.0,88498.0,0.01]
[1767193281133,0.04696117,88527.0,88498.0,0.01]
[1767193281405,0.04696117,88525.0,88498.0,0.01]
[1767193281565,0.04696117,88523.0,88498.0,0.01]
[1767193281763,0.04696117,88521.0,88498.0,0.01]
[1767193282104,0.05519576,88521.0,88498.0,0.01]
[1767193282460,0.04696117,88519.0,88487.0,0.01]
[1767193282661,0.00823459,88521.0,88487.0,0.01]
[1767193282662,0.04696117,88517.0,88487.0,0.01]
[1767193282908,0.04696117,88515.0,88487.0,0.01]
[1767193283089,0.04696117,88513.0,88487.0,0.01]
[1767193284599,0.05279729,88513.0,88487.0,0.01]
[1767193284961,0.04696117,88513.0,88487.0,0.01]
[1767193287891,0.04696117,88513.0,88480.0,0.0002722]
[1767193288255,0.0114,88514.0,88474.0,0.0002]
[1767193288256,0.04696117,88507.0,88474.0,0.0002]
[1767193288561,0.0299092,88510.0,88474.0,0.0002]
[1767193288562,0.04696117,88505.0,88474.0,0.0002]
[1767193288713,0.04696117,88503.0,88474.0,0.0002]
[1767193289064,0.04696117,88501.0,88474.0,0.0002]
[1767193289397,0.04696117,88501.0,88474.0,0.00030615]
[1767193289720,0.04696117,88499.0,88474.0,0.00030615]
[1767193289900,0.04696117,88497.0,88474.0,0.01030615]
[1767193290974,0.04000889,88497.0,88474.0,0.01030615]
[1767193291330,0.04000889,88497.0,88475.0,0.0326801]
[1767193292083,0.04000889,88497.0,88474.0,0.01030615]
[1767193294666,0.0114,88498.0,88464.0,0.0002722]
[1767193294667,0.04696117,88473.0,88464.0,0.0002722]
[1767193295123,0.000549,88474.0,88464.0,0.0002722]
[1767193295362,0.05836117,88477.0,88464.0,0.0002722]
[1767193296147,0.05836117,88477.0,88439.0,0.01130722]
[1767193296148,0.04696117,88463.0,88445.0,0.0114]
[1767193296354,0.04696117,88463.0,88451.0,0.00055364]
[1767193297930,0.04696117,88463.0,88451.0,0.00069884]
[1767193298339,0.04696117,88463.0,88451.0,0.01014984]
[1767193300743,0.04696117,88461.0,88440.0,0.0003158]
[1767193300933,0.04696117,88459.0,88440.0,0.0003158]
[1767193302162,0.04696117,88459.0,88440.0,6.884e-05]
[1767193302796,0.04696117,88459.0,88440.0,0.01006884]
[1767193303000,0.04696117,88459.0,88432.0,0.0002]
[1767193303137,0.04696117,88459.0,88434.0,0.01130786]
[1767193303343,0.04696117,88457.0,88432.0,0.01150812]
[1767193303568,0.04696117,88457.0,88434.0,0.01130786]
[1767193303765,0.04696117,88455.0,88434.0,0.01130786]
[1767193304154,0.04641117,88455.0,88437.0,0.01130748]
[1767193304409,0.04641117,88455.0,88434.0,0.06784669]
[1767193304837,0.04641117,88455.0,88435.0,0.06784639]
[1767193305052,0.04641117,88455.0,88436.0,0.035309]
[1767193305341,0.04641117,88455.0,88436.0,0.04661661]
[1767193305578,0.04641117,88455.0,88437.0,0.01130748]
[1767193306497,0.04641117,88455.0,88436.0,0.1031534]
[1767193306886,0.04641117,88455.0,88436.0,0.04661661]
[1767193307085,0.04641117,88455.0,88437.0,0.02602995]
[1767193307487,0.04641117,88455.0,88438.0,0.01130735]
[1767193307917,0.04641117,88455.0,88437.0,0.08256722]
[1767193308069,0.04641117,88455.0,88438.0,0.01130735]
[1767193308284,0.00035407,88461.0,88444.0,0.01130658]
[1767193308285,0.04676757,88461.0,88444.0,0.01130658]
[1767193308464,0.04676757,88461.0,88444.0,0.0114]
[1767193308663,0.04676757,88461.0,88440.0,0.0114]
[1767193308872,0.04676757,88461.0,88427.0,0.06785208]
[1767193309069,0.0464135,88459.0,88427.0,0.01130876]
[1767193309272,0.0464135,88459.0,88433.0,0.0114]
[1767193309606,0.0464135,88459.0,88426.0,0.01130889]
[1767193309607,0.0464135,88459.0,88421.0,0.0003158]
[1767193309804,0.0114,88460.0,88424.0,0.0114]
[1767193309805,0.0464135,88457.0,88424.0,0.0114]
[1767193310006,0.0464135,88455.0,88424.0,0.0114]
[1767193310212,0.0464135,88453.0,88424.0,0.0114]
[1767193310432,0.01273563,88454.0,88424.0,0.0114]
[1767193310433,0.0464135,88451.0,88424.0,0.0114]
[1767193311492,0.0464135,88451.0,88421.0,0.0003158]
[1767193311697,0.04881923,88431.0,88409.0,0.00017715]
[1767193311953,0.04881923,88431.0,88412.0,0.0114]
[1767193312884,0.04881923,88431.0,88412.0,0.00010617]
[1767193314044,0.04881923,88431.0,88412.0,0.00919247]
[1767193314232,0.04881923,88431.0,88412.0,0.00010617]
[1767193314693,0.04881923,88431.0,88414.0,0.01131042]
[1767193315051,0.04578584,88431.0,88425.0,0.01130901]
[1767193315397,0.06116696,88455.0,88429.0,0.0113085]
[1767193315398,0.0002,88441.0,88429.0,0.0113085]
[1767193315532,0.04881923,88448.0,88442.0,0.01130684]
[1767193315737,0.02391374,88454.0,88451.0,0.01130569]
[1767193315738,0.04881923,88454.0,88451.0,0.01130569]
[1767193315956,0.04881923,88454.0,88450.0,0.01130582]
[1767193316154,0.04881923,88454.0,88447.0,0.0113062]
[1767193316155,0.04881923,88454.0,88448.0,0.06783598]
[1767193316358,0.04881923,88454.0,88451.0,0.01130569]
[1767193316563,0.04881923,88463.0,88455.0,0.01130518]
[1767193316787,0.04881923,88463.0,88455.0,0.00010617]
[1767193317056,0.04881923,88463.0,88455.0,0.01141135]
[1767193317202,0.04881923,88463.0,88458.0,0.0113048]
[1767193317382,0.0002,88465.0,88455.0,0.00010617]
[1767193317583,0.04901923,88465.0,88456.0,0.03392672]
[1767193317827,0.04901923,88465.0,88457.0,0.01130492]
[1767193318883,0.04901923,88465.0,88453.0,0.01130543]
[1767193318884,0.04881923,88456.0,88410.0,0.61055848]
[1767193319051,0.04881923,88456.0,88445.0,0.00055385]
[1767193320498,0.04881923,88444.0,88416.0,0.06786084]
[1767193320738,0.06057315,88444.0,88421.0,0.0116]
[1767193320976,0.06057315,88444.0,88421.0,0.02290953]
[1767193321234,0.06057315,88444.0,88421.0,0.0116]
[1767193321431,0.06057315,88444.0,88421.0,0.0002]
[1767193321834,0.04881923,88442.0,88421.0,0.0002]
[1767193323712,0.04881923,88442.0,88421.0,0.00015735]
[1767193323918,0.0239741,88441.0,88421.0,0.00015735]
[1767193324120,0.04881923,88440.0,88421.0,0.00015735]
[1767193324330,0.05727396,88440.0,88421.0,0.00015735]
[1767193324577,0.05727396,88440.0,88409.0,0.01148821]
[1767193324578,0.04881923,88438.0,88409.0,0.00017715]
[1767193324752,0.01175392,88444.0,88409.0,0.00017715]
[1767193324753,0.01175392,88444.0,88412.0,0.0114]
[1767193324754,0.04897623,88421.0,88412.0,0.0114]
[1767193324935,0.04881923,88421.0,88412.0,0.0114]
[1767193327128,0.04881923,88421.0,88409.0,0.01148821]
[1767193327129,0.04881923,88421.0,88409.0,0.00017715]
[1767193327328,0.04881923,88411.0,88409.0,0.00017715]
[1767193328252,0.04881923,88426.0,88409.0,0.00017715]
[1767193328452,0.04881923,88424.0,88409.0,0.00028355]
[1767193328903,0.04881923,88424.0,88410.0,0.00794657]
[1767193329104,0.04881923,88424.0,88409.0,0.00028355]
[1767193332313,0.04881923,88424.0,88411.0,0.05655345]
[1767193332484,0.0114,88427.0,88411.0,0.0114]
[1767193332691,0.06021923,88427.0,88411.0,0.0114]
[1767193334479,0.06021923,88427.0,88411.0,0.0227108]
[1767193334693,0.06021923,88427.0,88412.0,0.0294464]
[1767193334939,0.06021923,88427.0,88409.0,0.00028355]
[1767193334940,0.04881923,88411.0,88409.0,0.00028355]
[1767193335180,0.04881923,88408.0,88402.0,0.0003158]
[1767193335330,0.04892535,88408.0,88402.0,0.0003158]
[1767193336853,0.04892535,88408.0,88402.0,0.01162776]
[1767193337056,0.04892535,88408.0,88402.0,0.0003158]
[1767193337836,0.00010612,88408.0,88403.0,0.02718955]
[1767193338108,0.04881923,88417.0,88404.0,0.0113117]
[1767193338304,0.04881923,88417.0,88405.0,0.01131157]
[1767193338523,0.04881923,88417.0,88405.0,0.06786904]
[1767193338827,0.04881923,88417.0,88404.0,0.06787017]
[1767193338999,0.04881923,88417.0,88405.0,0.04546123]
[1767193339581,0.04881923,88417.0,88402.0,0.0003158]
[1767193340585,0.04881923,88417.0,88402.0,8e-07]
[1767193340755,0.04881923,88417.0,88387.0,0.01131388]
[1767193340958,0.04881923,88417.0,88388.0,0.0114]
[1767193341121,0.04881923,88417.0,88389.0,0.01131362]
[1767193341320,0.04881923,88417.0,88390.0,0.04532977]
[1767193341706,0.04881923,88417.0,88388.0,0.0114]
[1767193342378,0.04881923,88417.0,88388.0,0.0115734]
[1767193342547,0.04881923,88417.0,88388.0,0.02288715]
[1767193343120,0.04881923,88417.0,88388.0,0.0115734]
[1767193343332,0.04881923,88417.0,88388.0,0.0001734]
[1767193343538,0.0114,88419.0,88388.0,0.0001734]
[1767193343539,0.04519899,88415.0,88388.0,0.0001734]
[1767193343735,0.04519899,88415.0,88364.0,0.22633527]
[1767193343736,0.02395175,88414.0,88364.0,0.22633527]
[1767193343934,0.02395175,88414.0,88360.0,0.0002]
[1767193343935,0.04519899,88387.0,88362.0,0.0114]
[1767193344175,0.04519899,88387.0,88370.0,0.51243969]
[1767193345219,0.04519899,88387.0,88370.0,0.51254613]
[1767193345792,0.02993821,88415.0,88373.0,0.01131567]
[1767193346002,0.03995556,88420.0,88370.0,1.12310461]
[1767193346003,0.04519899,88391.0,88387.0,0.000376]
[1767193346199,0.04519899,88391.0,88377.0,0.0678908]
[1767193346376,0.04519899,88391.0,88378.0,0.04308317]
[1767193347561,0.04519899,88391.0,88378.0,0.0114]
[1767193348776,0.04519899,88391.0,88380.0,0.06788841]
[1767193348777,0.04482299,88391.0,88380.0,0.06788841]
[1767193349096,0.04482299,88391.0,88382.0,0.0565726]
[1767193349333,0.0114,88399.0,88381.0,0.01151464]
[1767193349645,0.05659899,88399.0,88382.0,0.01131452]
[1767193349838,0.05659899,88399.0,88381.0,0.0002]
[1767193349839,0.04519899,88398.0,88381.0,0.0002]
[1767193350227,0.04519899,88398.0,88370.0,0.51254613]
[1767193351240,0.04519899,88398.0,88370.0,0.52394613]
[1767193352201,0.04519899,88398.0,88371.0,0.01131592]
[1767193352381,0.04519899,88396.0,88371.0,0.06789493]
[1767193352577,0.04519899,88396.0,88372.0,0.06789479]
[1767193352778,0.04519899,88396.0,88377.0,0.06789089]
[1767193353034,0.04519899,88396.0,88378.0,0.07929014]
[1767193353187,0.04519899,88396.0,88382.0,0.01131452]
[1767193353389,0.04519899,88396.0,88379.0,0.0113149]
[1767193353390,0.04539899,88401.0,88381.0,0.05657318]
[1767193353588,0.04539899,88401.0,88378.0,0.07928899]
[1767193353809,0.04539899,88401.0,88379.0,0.06788923]
[1767193353979,0.04539899,88401.0,88380.0,0.01131477]
[1767193354174,0.04539899,88401.0,88381.0,0.01131464]
[1767193354510,0.04539899,88401.0,88381.0,0.06788662]
[1767193354668,0.04539899,88401.0,88382.0,0.03734747]
[1767193355092,0.04539899,88401.0,88378.0,0.06797455]
[1767193355093,0.04539899,88401.0,88378.0,0.0114]
[1767193355956,0.04539899,88401.0,88378.0,0.02271503]
[1767193356165,0.04539899,88401.0,88379.0,0.0113149]
[1767193356596,0.04539899,88401.0,88383.0,0.01131439]
[1767193356798,0.04539899,88401.0,88384.0,0.09391793]
[1767193357017,0.04539899,88401.0,88384.0,0.02603295]
[1767193357700,0.04539899,88401.0,88378.0,0.0114]
[1767193358109,0.04539899,88401.0,88378.0,0.02271503]
[1767193358350,0.04539899,88401.0,88380.0,0.01131477]
[1767193358522,0.04539899,88401.0,88381.0,0.01131464]
[1767193358726,0.04539899,88401.0,88384.0,0.05657117]
[1767193359011,0.04539899,88401.0,88384.0,0.01131426]
[1767193359245,0.02993821,88418.0,88387.0,0.01131388]
[1767193359444,0.00056884,88436.0,88388.0,0.0114]
[1767193359445,0.04519899,88416.0,88388.0,0.0114]
[1767193359657,0.04519899,88410.0,88391.0,0.0002]
[1767193359835,0.04519899,88410.0,88392.0,0.00907976]
[1767193360712,0.04519899,88410.0,88391.0,0.0002]
[1767193364274,0.0002,88411.0,88400.0,0.61055848]
[1767193364476,0.0002,88411.0,88391.0,0.01151336]
[1767193364477,0.04519899,88410.0,88391.0,0.0002]
[1767193364676,0.0002,88411.0,88392.0,0.0114]
[1767193364677,0.04574799,88400.0,88392.0,0.0114]
[1767193365110,0.04519899,88410.0,88393.0,0.0114]
[1767193365489,0.04530533,88410.0,88393.0,0.0114]
[1767193365687,0.04530533,88410.0,88391.0,0.0002]
[1767193365688,0.04530533,88410.0,88392.0,0.01131324]
[1767193365892,0.00010634,88410.0,88397.0,0.05656253]
[1767193366091,0.00010634,88410.0,88399.0,0.06787386]
[1767193366299,0.00010634,88410.0,88400.0,0.01131221]
[1767193366500,0.04519899,88409.0,88401.0,0.0114]
[1767193367300,0.04519899,88409.0,88401.0,0.02271208]
[1767193367500,0.04519899,88409.0,88403.0,0.01131183]
[1767193367683,0.04519899,88409.0,88404.0,0.01245202]
[1767193368148,0.00010634,88410.0,88404.0,0.01245202]
[1767193368290,0.00010634,88410.0,88404.0,0.02376372]
[1767193368493,0.00010634,88410.0,88406.0,0.01131144]
[1767193368695,0.00010634,88410.0,88406.0,0.06786865]
[1767193368914,0.00010634,88410.0,88407.0,0.05781227]
[1767193369129,0.00010634,88410.0,88407.0,0.11436843]
[1767193369333,0.00010634,88410.0,88409.0,0.05655532]
[1767193369542,0.00010634,88410.0,88409.0,0.0114]
[1767193370038,0.00010634,88410.0,88409.0,0.06795532]
[1767193370246,0.00010634,88410.0,88409.0,0.0114]
[1767193370557,0.00010634,88410.0,88409.0,0.06795532]
[1767193370883,0.04519899,88422.0,88414.0,0.05655208]
[1767193371090,0.04519899,88428.0,88414.0,0.01131042]
[1767193371291,0.04519899,88428.0,88415.0,0.01131029]
[1767193371645,0.04569215,88434.0,88410.0,1.12251216]
[1767193371847,0.0002,88427.0,88420.0,0.01130965]
[1767193372048,0.0002,88427.0,88421.0,0.0114]
[1767193372246,0.0002,88427.0,88421.0,0.06794703]
[1767193372488,0.0002,88427.0,88421.0,0.02270953]
[1767193372930,0.0002,88427.0,88422.0,0.0113094]
[1767193373135,0.00056884,88436.0,88428.0,0.01130863]
[1767193373356,0.00056884,88436.0,88432.0,0.01130812]
[1767193373570,0.00056884,88436.0,88433.0,0.01130799]
[1767193373771,0.00056884,88436.0,88434.0,0.05653872]
[1767193374102,0.00056884,88436.0,88433.0,0.01130799]
[1767193374307,0.00056884,88436.0,88434.0,0.03958898]
[1767193374514,0.00056884,88436.0,88434.0,0.09612825]
[1767193374707,0.00056884,88436.0,88434.0,0.09612822]
[1767193374913,0.00030427,88441.0,88440.0,0.0565355]
[1767193375117,0.00041065,88441.0,88440.0,0.03314997]
[1767193375317,0.00041065,88441.0,88440.0,0.0114]
[1767193376094,0.00041065,88441.0,88440.0,0.0679355]
[1767193377288,0.0461028,88441.0,88426.0,0.0002]
[1767193377510,0.04569215,88439.0,88427.0,0.0114]
[1767193378276,0.04569215,88439.0,88428.0,0.01133824]
[1767193378590,0.04569215,88439.0,88429.0,0.0113085]
[1767193378951,0.04569215,88439.0,88432.0,0.0565406]
[1767193379154,0.00041065,88441.0,88434.0,0.01130786]
[1767193379360,0.00041065,88441.0,88433.0,0.0114]
[1767193379581,0.00041065,88441.0,88436.0,0.01130761]
[1767193379782,0.0461028,88441.0,88436.0,0.01130761]
[1767193380179,0.0461028,88441.0,88434.0,0.02489125]
[1767193380393,0.04569215,88433.0,88429.0,0.0565885]
[1767193380590,0.04569215,88433.0,88428.0,0.02264687]
[1767193380591,0.04624215,88429.0,88428.0,0.01133824]
[1767193380841,0.04569215,88429.0,88428.0,0.0114]
[1767193381615,0.04569215,88427.0,88426.0,0.0116]
[1767193382207,0.04569215,88427.0,88423.0,0.0114]
[1767193382810,0.04569215,88427.0,88423.0,0.010851]
[1767193383491,0.04569215,88427.0,88424.0,0.00900208]
[1767193383712,0.04569215,88427.0,88423.0,0.010851]
[1767193383713,0.00055,88424.0,88423.0,0.010851]
[1767193384205,0.04569215,88433.0,88423.0,0.02216027]
[1767193384406,0.04569215,88440.0,88433.0,0.000549]
[1767193384807,0.04569215,88440.0,88421.0,0.01130953]
[1767193385010,0.04569215,88440.0,88410.0,0.01131093]
[1767193385214,0.04569215,88440.0,88413.0,0.01131055]
[1767193385461,0.04569215,88440.0,88414.0,0.0114]
[1767193385955,0.04569215,88440.0,88415.0,0.01131029]
[1767193386115,0.04569215,88440.0,88414.0,0.02271042]
[1767193386660,0.04569215,88440.0,88411.0,0.02609301]
[1767193386815,0.04569215,88440.0,88415.0,0.0114]
[1767193387157,0.04569215,88440.0,88416.0,0.01085]
[1767193387355,0.04569215,88440.0,88417.0,0.0114]
[1767193387567,0.04569215,88440.0,88415.0,0.0114]
[1767193387890,0.04569215,88440.0,88409.0,0.00056893]
[1767193388090,0.04569215,88440.0,88413.0,0.0114]
[1767193388473,0.04569215,88440.0,88411.0,0.0114]
[1767193389039,0.04569215,88440.0,88396.0,0.01131272]
[1767193389239,0.04569215,88438.0,88397.0,0.0114]
[1767193389372,0.04569215,88436.0,88397.0,0.0114]
[1767193389579,0.04569215,88434.0,88397.0,0.0114]
[1767193389778,0.04569215,88432.0,88397.0,0.0114]
[1767193390319,0.04569215,88432.0,88399.0,0.01131234]
[1767193390481,0.04569215,88432.0,88400.0,0.01697724]
[1767193390838,0.04569215,88432.0,88404.0,0.0113117]
[1767193391026,0.04569215,88430.0,88403.0,0.06787037]
[1767193391228,0.04569215,88428.0,88407.0,0.05655606]
[1767193391434,0.04569215,88428.0,88408.0,0.0114]
[1767193391634,0.04569215,88428.0,88409.0,0.04412339]
[1767193392240,0.04569215,88428.0,88410.0,0.01131093]
[1767193392467,0.04569215,88428.0,88412.0,0.01131068]
[1767193392626,0.04569215,88428.0,88413.0,0.01131055]
[1767193392828,0.04569215,88428.0,88409.0,0.04412339]
[1767193393172,0.04569215,88428.0,88370.0,0.51243969]
[1767193393173,0.04569215,88428.0,88388.0,0.0114]
[1767193393328,0.0114,88429.0,88388.0,0.02271375]
[1767193393329,0.04569215,88426.0,88388.0,0.02271375]
[1767193393666,0.04569215,88424.0,88388.0,0.02271375]
[1767193394466,0.04569215,88424.0,88390.0,0.01131349]
[1767193394668,0.04569215,88424.0,88388.0,0.07928251]
[1767193395105,0.04569215,88424.0,88388.0,0.02271375]
[1767193395274,0.04569215,88424.0,88388.0,0.0114]
[1767193395612,0.04569215,88422.0,88388.0,0.0114]
[1767193395743,0.02993821,88430.0,88388.0,0.0114]
[1767193395744,0.04569215,88420.0,88388.0,0.0114]
[1767193395980,0.04569215,88418.0,88388.0,0.0114]
[1767193396400,0.0114,88419.0,88388.0,0.0114]
[1767193396401,0.04569215,88416.0,88388.0,0.0114]
[1767193397137,0.0114,88419.0,88379.0,0.0114]
[1767193397138,0.04569215,88414.0,88379.0,0.0114]
[1767193397291,0.04569215,88400.0,88381.0,0.0002]
[1767193397493,0.05709215,88400.0,88381.0,0.0002]
[1767193398332,0.05709215,88400.0,88381.0,0.00030634]
[1767193400194,0.04997946,88398.0,88381.0,0.00030634]
[1767193402013,0.04707582,88399.0,88398.0,0.000549]
[1767193402293,0.04707582,88399.0,88382.0,0.01131452]
[1767193402458,0.03817598,88399.0,88386.0,0.011314]
[1767193402785,0.00187083,88399.0,88381.0,0.00030634]
[1767193402985,0.00187083,88399.0,88382.0,0.02606445]
[1767193403289,0.04528,88417.0,88382.0,0.02606445]
[1767193403290,0.0114,88404.0,88385.0,0.01131413]
[1767193403497,0.02574626,88403.0,88392.0,0.0002]
[1767193404040,0.02519726,88403.0,88392.0,0.0002]
[1767193404482,0.02519726,88403.0,88392.0,0.00813984]
[1767193405475,0.02519726,88403.0,88392.0,0.0002]
[1767193406324,0.02519726,88403.0,88392.0,0.01151324]
[1767193406530,0.02515366,88403.0,88392.0,0.01151324]
[1767193406687,0.04707582,88410.0,88396.0,0.01131272]
[1767193406894,0.0002,88412.0,88403.0,0.01131183]
[1767193407110,0.0002,88412.0,88403.0,0.0114]
[1767193407324,0.04707582,88411.0,88402.0,0.0114]
[1767193409256,0.04707582,88411.0,88392.0,0.06807901]
[1767193409257,0.04703255,88411.0,88401.0,0.0114]
[1767193409417,0.04762582,88401.0,88392.0,0.0002]
[1767193409804,0.04707582,88401.0,88392.0,0.0002]
[1767193410245,0.04707582,88401.0,88393.0,0.01699925]
[1767193410642,0.04707582,88401.0,88392.0,0.0002]
[1767193413764,0.04707582,88401.0,88392.0,0.0567659]
[1767193413972,0.0002,88412.0,88401.0,0.01131208]
[1767193414151,0.0002,88412.0,88408.0,0.01131119]
[1767193414493,0.00015665,88412.0,88409.0,0.06786597]
[1767193414630,0.04707582,88411.0,88410.0,0.01696676]
[1767193414837,0.04707582,88411.0,88398.0,0.22624769]
[1767193414838,0.04707582,88409.0,88405.0,0.0114]
[1767193416235,0.04707582,88409.0,88405.0,0.010851]
[1767193417232,0.04652682,88409.0,88405.0,0.010851]
[1767193418141,0.04652682,88409.0,88401.0,0.0114]
[1767193418366,0.04652682,88409.0,88401.0,0.01150634]
[1767193418624,0.04652682,88409.0,88402.0,0.00680701]
[1767193418962,0.04648331,88409.0,88402.0,0.00680701]
[1767193419557,0.00015665,88412.0,88402.0,0.00680701]
[1767193419772,0.00011464,88412.0,88403.0,0.01131183]
[1767193420183,0.00011464,88412.0,88402.0,0.01811897]
[1767193420383,0.00011464,88412.0,88403.0,0.05655902]
[1767193420627,0.00011464,88412.0,88403.0,0.01131183]
[1767193421186,0.00011464,88412.0,88405.0,0.06786919]
[1767193421610,0.00011464,88412.0,88402.0,0.06787122]
[1767193421805,0.04719046,88412.0,88401.0,0.01150634]
[1767193422510,0.04719046,88412.0,88402.0,0.0114]
[1767193422708,0.04719046,88412.0,88401.0,0.00010634]
[1767193423023,0.04719046,88412.0,88402.0,0.0114]
[1767193426462,0.04719046,88412.0,88399.0,0.0114]
[1767193426663,0.0472968,88412.0,88399.0,0.0114]
[1767193426840,0.0586968,88412.0,88395.0,0.0114]
[1767193427247,0.0586968,88412.0,88396.0,0.01021071]
[1767193428040,0.04707582,88418.0,88412.0,0.00087802]
[1767193428615,0.00019267,88430.0,88408.0,0.01131119]
[1767193428616,0.04707582,88426.0,88408.0,0.01131119]
[1767193428814,0.04707582,88426.0,88404.0,0.0114]
[1767193428961,0.04707582,88424.0,88405.0,0.02489606]
[1767193429158,0.04707582,88424.0,88404.0,0.0114]
[1767193429565,0.04707582,88424.0,88404.0,0.0227117]
[1767193429804,0.04707582,88424.0,88405.0,0.05655759]
[1767193429951,0.04707582,88424.0,88404.0,0.07926965]
[1767193430157,0.04707582,88424.0,88405.0,0.01131157]
[1767193430361,0.04707582,88424.0,88405.0,0.06786941]
[1767193430598,0.04707582,88424.0,88404.0,0.0227117]
[1767193430792,0.04707582,88424.0,88404.0,0.0114]
[1767193431055,0.04707582,88424.0,88404.0,0.07926998]
[1767193431202,0.04707582,88424.0,88405.0,0.01131157]
[1767193431413,0.04707582,88424.0,88407.0,0.06786786]
[1767193431617,0.04707582,88424.0,88406.0,0.01131144]
[1767193431817,0.04707582,88424.0,88405.0,0.01131157]
[1767193432427,0.04707582,88424.0,88404.0,0.0227117]
[1767193432624,0.04707582,88424.0,88405.0,0.06786945]
[1767193432945,0.04707582,88424.0,88404.0,0.0114]
[1767193433153,0.0114,88427.0,88404.0,0.0114]
[1767193433154,0.04687901,88422.0,88404.0,0.0114]
[1767193433788,0.04687901,88422.0,88389.0,0.01131362]
[1767193433789,0.000221,88404.0,88386.0,0.05656956]
[1767193433998,0.04710001,88404.0,88393.0,0.0114]
[1767193434197,0.04687901,88404.0,88393.0,0.0114]
[1767193434905,0.04687901,88404.0,88393.0,0.02162172]
[1767193436621,0.04687901,88404.0,88393.0,0.0114]
[1767193437033,0.04687901,88404.0,88392.0,0.01170634]
[1767193441865,0.04655101,88404.0,88398.0,0.01131247]
[1767193442066,0.04687901,88414.0,88394.0,0.01131298]
[1767193442589,0.04687901,88414.0,88399.0,0.06787404]
[1767193442789,0.04687901,88414.0,88398.0,0.01131247]
[1767193443143,0.04687901,88414.0,88401.0,0.06787242]
[1767193443291,0.04687901,88414.0,88402.0,0.02271196]
[1767193443490,0.04687901,88419.0,88403.0,0.01131183]
[1767193443813,0.04687901,88419.0,88404.0,0.0115117]
[1767193444535,0.04687901,88419.0,88409.0,0.01131106]
[1767193444732,0.04707901,88424.0,88409.0,0.01131106]
[1767193444935,0.04707901,88424.0,88411.0,0.0113108]
[1767193445177,0.04707901,88424.0,88414.0,0.01131042]
[1767193445328,0.04707901,88424.0,88415.0,0.01131029]
[1767193445329,0.0002,88424.0,88415.0,0.01131029]
[1767193445499,0.0002,88424.0,88413.0,0.01131055]
[1767193445699,0.0002,88424.0,88416.0,0.01131017]
[1767193446112,0.04707168,88430.0,88428.0,0.05654317]
[1767193446113,1e-08,88430.0,88428.0,0.05654317]
[1767193446329,1e-08,88430.0,88427.0,0.01130876]
[1767193446330,0.0005956,88436.0,88429.0,0.0227085]
[1767193446496,0.0005956,88436.0,88420.0,0.61126926]
[1767193446497,0.04687901,88435.0,88423.0,0.05654602]
[1767193446699,0.0005956,88436.0,88425.0,0.01130901]
[1767193446700,0.04742801,88429.0,88425.0,0.01130901]
[1767193446898,0.000549,88429.0,88424.0,0.0114]
[1767193447045,0.04687901,88429.0,88424.0,0.0114]
[1767193447245,0.0005956,88436.0,88427.0,0.01130876]
[1767193447566,0.0005956,88436.0,88429.0,0.06785097]
[1767193447765,0.0005956,88436.0,88430.0,0.01130837]
[1767193447992,0.0005956,88436.0,88431.0,0.06784942]
[1767193448190,0.0005956,88436.0,88431.0,0.01130825]
[1767193448512,0.0005956,88436.0,88428.0,0.00906073]
[1767193448513,0.000549,88431.0,88428.0,0.00906073]
[1767193448717,0.04687901,88435.0,88429.0,0.00996246]
[1767193450282,0.04687901,88435.0,88429.0,0.02127096]
[1767193450603,0.0005956,88436.0,88429.0,0.00996246]
[1767193450799,0.0005956,88436.0,88429.0,0.02127096]
[1767193451134,0.0005956,88436.0,88429.0,0.07781336]
[1767193451278,0.0005956,88436.0,88430.0,0.03329128]
[1767193451480,0.04704441,88435.0,88431.0,0.0114]
[1767193451687,0.04704441,88435.0,88432.0,0.0114]
[1767193452488,0.04704441,88435.0,88433.0,0.0114]
[1767193452690,0.04704441,88435.0,88405.0,0.16051157]
[1767193452891,0.04704441,88435.0,88410.0,0.09652169]
[1767193453115,0.04704441,88433.0,88410.0,0.09652169]
[1767193453357,0.04715079,88433.0,88414.0,0.01131042]
[1767193453714,0.04715079,88433.0,88415.0,0.01131029]
[1767193453924,0.04715079,88433.0,88416.0,0.06786086]
[1767193454081,0.04715079,88433.0,88420.0,0.01130965]
[1767193454397,0.04715079,88433.0,88419.0,0.01130978]
[1767193454592,0.04624615,88433.0,88417.0,0.02523962]